[Event "44th Chess Olympiad Open 2022"]
[Site "Chennai"]
[Date "2022.08.09"]
[Round "11.51"]
[White "Dornbusch, Tatiana"]
[Black "Tapia Ostolaza, Alexei"]
[Result "0-1"]
[ECO "A45"]
[WhiteElo "2247"]
[BlackElo "2201"]
[Annotator "RC"]
[PlyCount "106"]
[EventDate "2022.07.29"]
[EventType "team-tourn"]
[EventCountry "IND"]
[SourceTitle "playchess.com"]
[Source "ChessBase"]
[SourceQuality "1"]
[WhiteTeam "Monaco"]
[BlackTeam "Panama"]
[WhiteTeamCountry "MNC"]
[BlackTeamCountry "PAN"]
[TimeControl "40/5400+30:1800+30"]

1. d4 {[%emt 0:00:07]} Nf6 {[%emt 0:00:08]} 2. Bg5 {[%emt 0:00:45]} g6 {[%emt 0:00:51]} 3. Bxf6 {[%emt 0:00:48]} exf6 {[%emt 0:00:03]} 4. c4 {[%emt 0:07:08]} f5 {[%emt 0:03:15]} 5. Nc3 {[%emt 0:03:01]} Bg7 {[%emt 0:01:19]} 6. g3 {[%emt 0:00:32]} O-O {[%emt 0:02:13]} 7. Bg2 {[%emt 0:00:33]} d6 {[%emt 0:06:46]} 8. e3 {[%emt 0:03:21]} Nd7 {[%emt 0:00:46]} 9. Nge2 {[%emt 0:00:51]} Nf6 {[%emt 0:02:09]} 10. O-O {[%emt 0:06:19]} h5 {[%emt 0:02:37]} 11. h4 {[%emt 0:03:39]} Re8 {[%emt 0:03:32]} 12. Qc2 {[%emt 0:04:02]} Ng4 {[%emt 0:02:57]} 13. Nf4 {[%emt 0:26:06]} Bf6 {[%emt 0:16:13]} 14. Rfe1 {[%emt 0:09:43]} c6 {[%emt 0:05:25]} 15. Qd2 {[%emt 0:01:12]} Bg7 {[%emt 0:01:48]} 16. b4 {[%emt 0:02:09]} Bd7 {[%emt 0:01:35]} 17. b5 {[%emt 0:04:21]} Rc8 {[%emt 0:04:43]} 18. Rab1 {[%emt 0:04:17]} Nf6 {[%emt 0:09:58]} 19. bxc6 {[%emt 0:01:48]} Bxc6 {[%emt 0:01:54]} 20. Bxc6 {[%emt 0:04:16]} bxc6 {[%emt 0:00:32]} 21. Rb7 {[%emt 0:00:35]} Re7 {[%emt 0:01:45]} 22. Reb1 {[%emt 0:02:09]} Bh6 {[%emt 0:03:36]} 23. Nd3 {[%emt 0:05:59]} Ng4 {[%emt 0:01:51]} 24. Nf4 {[%emt 0:02:23]} Qe8 {[%emt 0:05:39]} 25. Nce2 {[%emt 0:01:56]} Kh7 {[%emt 0:02:34]} 26. Qc3 {[%emt 0:02:29]} Rcc7 {[%emt 0:01:40]} 27. Rb8 {[%emt 0:00:35]} Qd7 {[%emt 0:01:14]} 28. Qa3 {[%emt 0:00:36]} Bg7 {[%emt 0:01:19]} 29. Kg2 {[%emt 0:00:59]} Re8 {[%emt 0:03:50]} 30. Rxe8 {[%emt 0:01:59]} Qxe8 {[%emt 0:00:02]} 31. Nc3 {[%emt 0:00:42]} Qe7 {[%emt 0:03:15]} 32. Rb8 {[%emt 0:00:27]} Bf6 {[%emt 0:00:43]} 33. Qb2 {[%emt 0:00:40]} Rd7 {[%emt 0:00:53]} 34. Qb1 {[%emt 0:00:22]} Kh6 {[%emt 0:05:22]} 35. a4 {[%emt 0:00:20]} Bxh4 {[%emt 0:03:47]} 36. gxh4 {[%emt 0:00:27]} Qxh4 {[%emt 0:00:49]} 37. Qg1 {[%emt 0:00:45]} Re7 {[%emt 0:00:22]} 38. Kf3 {[%emt 0:00:36]} Nxf2 {[%emt 0:01:04]} 39. Rb2 {[%emt 0:00:27]} Ng4 {[%emt 0:00:24]} 40. Nd1 {[%emt 0:00:32]} g5 {[%emt 0:00:34]} 41. Nd3 {[%emt 0:08:00]} Nxe3 {[%emt 0:01:31]} 42. Nxe3 {[%emt 0:00:44]} Qh3+ {[%emt 0:00:56]} 43. Ke2 {[%emt 0:00:49]} f4 {[%emt 0:00:15]} 44. Kd2 {[%emt 0:12:37]} Rxe3 {[%emt 0:03:31]} 45. Ne1 {[%emt 0:03:32]} Ra3 {[%emt 0:02:22]} 46. Rc2 {[%emt 0:01:08]} g4 {[%emt 0:01:12]} 47. d5 {[%emt 0:01:13]} c5 {[%emt 0:00:19]} 48. Qf2 {[%emt 0:00:27]} Kg5 {[%emt 0:01:10]} 49. a5 {[%emt 0:01:19]} h4 {[%emt 0:01:46]} 50. Qe2 {[%emt 0:01:14]} Re3 {[%emt 0:02:03]} 51. Qf2 {[%emt 0:00:59]} g3 {[%emt 0:00:46]} 52. Qg2 {[%emt 0:02:18]} Qxg2+ {[%emt 0:00:24]} 53. Nxg2 {[%emt 0:00:03]} Ra3 {[%emt 0:00:36]} 0-1

[Event "44th Chess Olympiad Open 2022"]
[Site "Chennai"]
[Date "2022.08.09"]
[Round "11.51"]
[White "Ramos Espinoza, Efren Andres"]
[Black "Ribbegren, Karl Johan"]
[Result "1/2-1/2"]
[ECO "A39"]
[WhiteElo "2158"]
[BlackElo "2198"]
[Annotator "RC"]
[PlyCount "119"]
[EventDate "2022.07.29"]
[EventType "team-tourn"]
[EventCountry "IND"]
[SourceTitle "playchess.com"]
[Source "ChessBase"]
[SourceQuality "1"]
[WhiteTeam "Panama"]
[BlackTeam "Monaco"]
[WhiteTeamCountry "PAN"]
[BlackTeamCountry "MNC"]
[TimeControl "40/5400+30:1800+30"]

1. Nf3 {[%emt 0:00:05]} Nf6 {[%emt 0:00:22]} 2. g3 {[%emt 0:00:07]} c5 {[%emt 0:01:13]} 3. c4 {[%emt 0:00:08]} g6 {[%emt 0:00:27]} 4. b3 {[%emt 0:00:18]} Bg7 {[%emt 0:00:23]} 5. Bb2 {[%emt 0:01:25]} O-O {[%emt 0:00:15]} 6. Bg2 {[%emt 0:00:15]} Nc6 {[%emt 0:00:45]} 7. O-O {[%emt 0:00:24]} a6 {[%emt 0:01:07]} 8. d4 {[%emt 0:01:49]} cxd4 {[%emt 0:06:01]} 9. Nxd4 {[%emt 0:00:19]} Rb8 {[%emt 0:02:00]} 10. Nc3 {[%emt 0:03:31]} Nxd4 {[%emt 0:05:15]} 11. Qxd4 {[%emt 0:00:11]} d6 {[%emt 0:05:06]} 12. Rfd1 {[%emt 0:05:05]} Nd7 {[%emt 0:11:30]} 13. Qd2 {[%emt 0:00:42]} b5 {[%emt 0:02:07]} 14. cxb5 {[%emt 0:00:56]} axb5 {[%emt 0:00:07]} 15. Nd5 {[%emt 0:01:30]} Bxb2 {[%emt 0:01:51]} 16. Qxb2 {[%emt 0:00:08]} Bb7 {[%emt 0:00:34]} 17. Qd4 {[%emt 0:02:59]} Bxd5 {[%emt 0:03:42]} 18. Bxd5 {[%emt 0:00:01]} b4 {[%emt 0:04:32]} 19. a4 {[%emt 0:03:04]} bxa3 {[%emt 0:08:08]} 20. Rxa3 {[%emt 0:00:18]} Qb6 {[%emt 0:01:22]} 21. Ra7 {[%emt 0:01:22]} Qxd4 {[%emt 0:02:18]} 22. Rxd4 {[%emt 0:00:08]} Rfd8 {[%emt 0:01:11]} 23. Bc6 {[%emt 0:05:53]} Ne5 {[%emt 0:01:03]} 24. Ba4 {[%emt 0:00:29]} Kf8 {[%emt 0:03:02]} 25. h3 {[%emt 0:08:42]} f5 {[%emt 0:14:23]} 26. f4 {[%emt 0:02:24]} Nf7 {[%emt 0:00:08]} 27. Rc4 {[%emt 0:01:37]} Rdc8 {[%emt 0:00:49]} 28. Rd4 {[%emt 0:05:36]} Rc3 {[%emt 0:01:55]} 29. Kf2 {[%emt 0:04:50]} Nd8 {[%emt 0:01:06]} 30. Rd5 {[%emt 0:00:56]} Ne6 {[%emt 0:01:02]} 31. Rd3 {[%emt 0:27:18]} Rxd3 {[%emt 0:00:24]} 32. exd3 {[%emt 0:00:05]} Nc5 {[%emt 0:00:14]} 33. Ke3 {[%emt 0:00:32]} Nxb3 {[%emt 0:00:55]} 34. d4 {[%emt 0:01:05]} Rb4 {[%emt 0:00:36]} 35. Kd3 {[%emt 0:07:08]} Nc1+ {[%emt 0:02:21]} 36. Kd2 {[%emt 0:00:50]} Na2 {[%emt 0:00:51]} 37. Ra8+ {[%emt 0:05:31]} Kg7 {[%emt 0:00:30]} 38. Bd7 {[%emt 0:03:48]} Rb2+ {[%emt 0:01:31]} 39. Kd3 {[%emt 0:00:45]} Nc1+ {[%emt 0:01:28]} 40. Ke3 {[%emt 0:02:46]} Re2+ {[%emt 0:01:55]} 41. Kf3 {[%emt 0:30:23]} Rd2 {[%emt 0:30:34]} 42. Rc8 {[%emt 0:04:35]} Rd3+ {[%emt 0:01:04]} 43. Kf2 {[%emt 0:00:14]} Nb3 {[%emt 0:01:11]} 44. Re8 {[%emt 0:00:00]} Kf7 {[%emt 0:00:00]} 45. Rh8 {[%emt 0:00:00]} h5 {[%emt 0:00:00]} 46. Rh7+ {[%emt 0:00:00]} Kf8 {[%emt 0:00:00]} 47. Be6 {[%emt 0:00:00]} Nxd4 {[%emt 0:00:00]} 48. Bf7 {[%emt 0:00:00]} e5 {[%emt 0:00:00]} 49. fxe5 {[%emt 0:00:00]} dxe5 {[%emt 0:00:00]} 50. Bxg6 {[%emt 0:00:00]} e4 {[%emt 0:00:00]} 51. Bxh5 {[%emt 0:00:00]} e3+ {[%emt 0:00:00]} 52. Kf1 {[%emt 0:00:00]} Rd2 {[%emt 0:00:36]} 53. Rf7+ {[%emt 0:00:00]} Kg8 {[%emt 0:00:07]} 54. Re7 {[%emt 0:00:00]} Nc2 {[%emt 0:01:36]} 55. Be2 {[%emt 0:00:00]} Kf8 {[%emt 0:03:44]} 56. Re5 {[%emt 0:00:00]} Kg7 {[%emt 0:00:46]} 57. Rxf5 {[%emt 0:00:00]} Nd4 {[%emt 0:02:22]} 58. Rd5 {[%emt 0:00:00]} Nxe2 {[%emt 0:00:37]} 59. Rxd2 {[%emt 0:00:00]} Nxg3+ {[%emt 0:00:11]} 60. Ke1 {[%emt 0:00:00]} 1/2-1/2

[Event "44th Chess Olympiad Open 2022"]
[Site "Chennai"]
[Date "2022.08.09"]
[Round "11.51"]
[White "Verdier, Patrice"]
[Black "Delgado Rosas, Alex Antonio"]
[Result "0-1"]
[ECO "A59"]
[WhiteElo "2017"]
[BlackElo "2149"]
[Annotator "NA RC"]
[PlyCount "78"]
[EventDate "2022.07.29"]
[EventType "team-tourn"]
[EventCountry "IND"]
[SourceTitle "playchess.com"]
[Source "ChessBase"]
[SourceQuality "1"]
[WhiteTeam "Monaco"]
[BlackTeam "Panama"]
[WhiteTeamCountry "MNC"]
[BlackTeamCountry "PAN"]
[TimeControl "40/5400+30:1800+30"]

1. d4 {[%emt 0:00:10]} Nf6 {[%emt 0:00:06]} 2. c4 {[%emt 0:00:17]} c5 {[%emt 0:00:04]} 3. d5 {[%emt 0:00:40]} b5 {[%emt 0:00:08]} 4. cxb5 {[%emt 0:00:58]} a6 {[%emt 0:00:10]} 5. bxa6 {[%emt 0:00:32]} g6 {[%emt 0:00:06]} 6. Nc3 {[%emt 0:00:38]} Bxa6 {[%emt 0:00:13]} 7. e4 {[%emt 0:01:31]} Bxf1 {[%emt 0:00:08]} 8. Kxf1 {[%emt 0:00:06]} d6 {[%emt 0:00:16]} 9. Nf3 {[%emt 0:00:19]} Bg7 {[%emt 0:00:33]} 10. g3 {[%emt 0:00:21]} Nbd7 {[%emt 0:00:23]} 11. Kg2 {[%emt 0:00:41]} O-O {[%emt 0:00:05]} 12. Re1 {[%emt 0:03:15]} Qc7 {[%emt 0:07:14]} 13. a4 {[%emt 0:06:43]} Rfb8 {[%emt 0:00:27]} 14. Ra3 {[%emt 0:07:06]} Qb7 {[%emt 0:10:32]} 15. Qc2 {[%emt 0:21:30]} Ne8 {[%emt 0:06:01]} 16. b3 {[%emt 0:04:52]} Nc7 {[%emt 0:01:00]} 17. Nd2 {[%emt 0:04:27]} e6 {[%emt 0:08:32]} 18. Nc4 {[%emt 0:05:26]} exd5 {[%emt 0:06:21]} 19. Nxd6 {[%emt 0:01:09]} Qb4 {[%emt 0:00:37]} 20. Re3 {[%emt 0:08:38]} c4 {[%emt 0:05:41]} 21. bxc4 {[%emt 0:00:19]} d4 {[%emt 0:01:05]} 22. Na2 {[%emt 0:03:19]} Qxd6 {[%emt 0:00:34]} 23. Re1 {[%emt 0:01:51]} Qc6 {[%emt 0:02:29]} 24. Bf4 {[%emt 0:03:30]} Rb7 {[%emt 0:02:33]} 25. a5 {[%emt 0:01:30]} Ne6 {[%emt 0:00:19]} 26. Bd2 {[%emt 0:00:30]} Bf8 {[%emt 0:00:45]} 27. Rb3 {[%emt 0:04:34]} Qa4 {[%emt 0:01:32]} 28. Nc1 {[%emt 0:05:10]} Ndc5 {[%emt 0:05:07]} 29. Rb2 {[%emt 0:00:23]} Rxb2 {[%emt 0:00:14]} 30. Qxb2 {[%emt 0:00:08]} Qxc4 {[%emt 0:00:11]} 31. Qb1 {[%emt 0:04:12]} d3 {[%emt 0:02:07]} 32. f3 {[%emt 0:02:19]} Rd8 {[%emt 0:00:34]} 33. Na2 {[%emt 0:01:30]} Nb3 {[%emt 0:01:30]} 34. Be3 {[%emt 0:02:15]} d2 {[%emt 0:01:19]} 35. Rd1 {[%emt 0:00:33]} Qe2+ {[%emt 0:00:28]} 36. Bf2 {[%emt 0:00:17]} Nbd4 {[%emt 0:00:17]} 37. f4 {[%emt 0:02:39]} Qf3+ {[%emt 0:01:25]} 38. Kg1 {[%emt 0:00:20]} Ne2+ {[%emt 0:00:45]} 39. Kf1 {[%emt 0:00:05]} N6d4 {[%emt 0:00:19]} 0-1

[Event "44th Chess Olympiad Open 2022"]
[Site "Chennai"]
[Date "2022.08.09"]
[Round "11.52"]
[White "Alhassadi, Yousef A."]
[Black "Nissinen, Niilo Man"]
[Result "1-0"]
[ECO "B22"]
[WhiteElo "2068"]
[BlackElo "1693"]
[Annotator "NA RC"]
[PlyCount "107"]
[EventDate "2022.07.29"]
[EventType "team-tourn"]
[EventCountry "IND"]
[SourceTitle "playchess.com"]
[Source "ChessBase"]
[SourceQuality "1"]
[WhiteTeam "Libya"]
[BlackTeam "Hong Kong"]
[WhiteTeamCountry "LBY"]
[BlackTeamCountry "HKG"]
[TimeControl "40/5400+30:1800+30"]

1. e4 {[%emt 0:00:03]} c5 {[%emt 0:00:07]} 2. c3 {[%emt 0:00:23]} Nf6 {[%emt 0:00:17]} 3. e5 {[%emt 0:00:04]} Nd5 {[%emt 0:00:08]} 4. d4 {[%emt 0:00:02]} cxd4 {[%emt 0:00:17]} 5. cxd4 {[%emt 0:00:05]} e6 {[%emt 0:00:50]} 6. Nf3 {[%emt 0:00:53]} Nc6 {[%emt 0:01:28]} 7. Bc4 {[%emt 0:00:16]} Nb6 {[%emt 0:00:14]} 8. Bb3 {[%emt 0:00:05]} h6 {[%emt 0:07:37]} 9. O-O {[%emt 0:03:09]} d6 {[%emt 0:03:33]} 10. Qe2 {[%emt 0:00:18]} Be7 {[%emt 0:04:37]} 11. Nc3 {[%emt 0:00:38]} d5 {[%emt 0:04:38]} 12. Rd1 {[%emt 0:11:39]} a6 {[%emt 0:04:33]} 13. Ne1 {[%emt 0:02:41]} g6 {[%emt 0:07:15]} 14. f4 {[%emt 0:16:26]} h5 {[%emt 0:01:56]} 15. Nf3 {[%emt 0:01:40]} Bd7 {[%emt 0:15:29]} 16. Kh1 {[%emt 0:12:20]} Qc7 {[%emt 0:02:31]} 17. a3 {[%emt 0:02:23]} Na5 {[%emt 0:03:03]} 18. Bc2 {[%emt 0:03:30]} O-O-O {[%emt 0:02:43]} 19. Qe1 {[%emt 0:10:36]} Kb8 {[%emt 0:04:34]} 20. b3 {[%emt 0:00:36]} Rc8 {[%emt 0:02:20]} 21. Bd2 {[%emt 0:00:06]} Nc6 {[%emt 0:01:06]} 22. Bd3 {[%emt 0:01:00]} Qd8 {[%emt 0:03:00]} 23. Rdb1 {[%emt 0:02:57]} Na7 {[%emt 0:03:09]} 24. Qe2 {[%emt 0:01:34]} Qf8 {[%emt 0:04:11]} 25. Be1 {[%emt 0:10:46]} Rc7 {[%emt 0:04:43]} 26. Qb2 {[%emt 0:04:19]} Bb5 {[%emt 0:08:50]} 27. Nxb5 {[%emt 0:02:09]} Nxb5 {[%emt 0:00:20]} 28. a4 {[%emt 0:01:09]} Na7 {[%emt 0:00:46]} 29. a5 {[%emt 0:02:12]} Nbc8 {[%emt 0:00:09]} 30. b4 {[%emt 0:00:06]} Nb5 {[%emt 0:01:33]} 31. Bxb5 {[%emt 0:04:56]} axb5 {[%emt 0:00:05]} 32. Bd2 {[%emt 0:04:12]} Ka7 {[%emt 0:02:24]} 33. Ne1 {[%emt 0:00:40]} h4 {[%emt 0:04:58]} 34. h3 {[%emt 0:01:07]} Bd8 {[%emt 0:01:27]} 35. Rc1 {[%emt 0:00:54]} Rc4 {[%emt 0:01:12]} 36. Rxc4 {[%emt 0:00:28]} dxc4 {[%emt 0:00:12]} 37. d5 {[%emt 0:00:34]} exd5 {[%emt 0:01:21]} 38. Qd4+ {[%emt 0:01:10]} Kb8 {[%emt 0:01:01]} 39. Qxd5 {[%emt 0:00:07]} Qe8 {[%emt 0:00:16]} 40. Bc3 {[%emt 0:00:41]} Rh7 {[%emt 0:00:53]} 41. a6 {[%emt 0:31:35]} bxa6 {[%emt 0:11:42]} 42. Rxa6 {[%emt 0:00:00]} Nb6 {[%emt 0:01:00]} 43. Qc5 {[%emt 0:00:00]} Kb7 {[%emt 0:02:39]} 44. Ra5 {[%emt 0:00:00]} Be7 {[%emt 0:04:09]} 45. Qe3 {[%emt 0:00:00]} Qd7 {[%emt 0:09:18]} 46. Kh2 {[%emt 0:00:00]} Rh5 {[%emt 0:01:32]} 47. Nf3 {[%emt 0:00:00]} Qd3 {[%emt 0:00:45]} 48. Qe1 {[%emt 0:00:33]} Rf5 {[%emt 0:01:40]} 49. Rxb5 {[%emt 0:00:19]} Kc7 {[%emt 0:01:07]} 50. Qa1 {[%emt 0:00:33]} Kb7 {[%emt 0:01:21]} 51. Qa5 {[%emt 0:00:39]} Qxc3 {[%emt 0:00:30]} 52. Qxb6+ {[%emt 0:00:14]} Kc8 {[%emt 0:00:06]} 53. Qb7+ {[%emt 0:00:11]} Kd8 {[%emt 0:00:03]} 54. Rd5+ {[%emt 0:00:11]} 1-0

[Event "44th Chess Olympiad Open 2022"]
[Site "Chennai"]
[Date "2022.08.09"]
[Round "11.52"]
[White "Deng, Yu Dong Michael"]
[Black "Attalib, Osama A."]
[Result "1/2-1/2"]
[ECO "E24"]
[WhiteElo "2028"]
[BlackElo "2033"]
[Annotator "NA RC"]
[PlyCount "67"]
[EventDate "2022.07.29"]
[EventType "team-tourn"]
[EventCountry "IND"]
[SourceTitle "playchess.com"]
[Source "ChessBase"]
[SourceQuality "1"]
[WhiteTeam "Hong Kong"]
[BlackTeam "Libya"]
[WhiteTeamCountry "HKG"]
[BlackTeamCountry "LBY"]
[TimeControl "40/5400+30:1800+30"]

1. d4 {[%emt 0:00:03]} Nf6 {[%emt 0:00:18]} 2. c4 {[%emt 0:00:05]} e6 {[%emt 0:00:22]} 3. Nc3 {[%emt 0:00:12]} Bb4 {[%emt 0:00:21]} 4. a3 {[%emt 0:00:08]} Bxc3+ {[%emt 0:00:07]} 5. bxc3 {[%emt 0:00:02]} b6 {[%emt 0:01:15]} 6. f3 {[%emt 0:00:09]} Nc6 {[%emt 0:00:31]} 7. e4 {[%emt 0:00:23]} d6 {[%emt 0:01:26]} 8. Bd3 {[%emt 0:02:12]} e5 {[%emt 0:00:35]} 9. Be3 {[%emt 0:03:43]} O-O {[%emt 0:00:29]} 10. d5 {[%emt 0:11:46]} Na5 {[%emt 0:00:39]} 11. g4 {[%emt 0:05:11]} Ba6 {[%emt 0:01:35]} 12. Qe2 {[%emt 0:06:12]} Nd7 {[%emt 0:00:21]} 13. Nh3 {[%emt 0:04:13]} Qh4+ {[%emt 0:03:06]} 14. Nf2 {[%emt 0:00:38]} Nc5 {[%emt 0:00:21]} 15. Bxc5 {[%emt 0:01:03]} bxc5 {[%emt 0:00:12]} 16. O-O {[%emt 0:01:08]} Rab8 {[%emt 0:01:15]} 17. Rfb1 {[%emt 0:04:59]} Rfc8 {[%emt 0:11:44]} 18. Nd1 {[%emt 0:03:44]} Qd8 {[%emt 0:05:20]} 19. Ne3 {[%emt 0:01:22]} Rxb1+ {[%emt 0:00:52]} 20. Rxb1 {[%emt 0:00:09]} Rb8 {[%emt 0:00:14]} 21. Qc2 {[%emt 0:06:40]} Rxb1+ {[%emt 0:04:27]} 22. Qxb1 {[%emt 0:00:01]} g6 {[%emt 0:00:22]} 23. Qd1 {[%emt 0:05:10]} Qe8 {[%emt 0:08:43]} 24. g5 {[%emt 0:05:34]} Bc8 {[%emt 0:01:49]} 25. Ng4 {[%emt 0:14:12]} Bxg4 {[%emt 0:00:35]} 26. fxg4 {[%emt 0:00:03]} Qb8 {[%emt 0:04:35]} 27. Qa4 {[%emt 0:01:27]} Nb3 {[%emt 0:00:45]} 28. Qd7 {[%emt 0:05:28]} Nc1 {[%emt 0:04:05]} 29. Bf1 {[%emt 0:01:30]} Na2 {[%emt 0:00:09]} 30. Bd3 {[%emt 0:09:30]} Nxc3 {[%emt 0:01:11]} 31. h4 {[%emt 0:00:22]} Qb2 {[%emt 0:07:54]} 32. Qd8+ {[%emt 0:00:08]} Kg7 {[%emt 0:00:08]} 33. Qf6+ {[%emt 0:00:02]} Kg8 {[%emt 0:00:17]} 34. Qd8+ {[%emt 0:00:38]} 1/2-1/2

[Event "44th Chess Olympiad Open 2022"]
[Site "Chennai"]
[Date "2022.08.09"]
[Round "11.52"]
[White "Naser Eldean, Ahmed"]
[Black "Kannappan, Thanneermalai"]
[Result "1/2-1/2"]
[ECO "D02"]
[WhiteElo "1941"]
[BlackElo "1699"]
[Annotator "TA"]
[PlyCount "66"]
[EventDate "2022.07.29"]
[EventType "team-tourn"]
[EventCountry "IND"]
[SourceTitle "playchess.com"]
[Source "ChessBase"]
[SourceQuality "1"]
[WhiteTeam "Libya"]
[BlackTeam "Hong Kong"]
[WhiteTeamCountry "LBY"]
[BlackTeamCountry "HKG"]
[TimeControl "40/5400+30:1800+30"]

{[%evp 14,66,25,20,33,0,7,4,9,3,12,-9,-7,-5,0,-20,0,0,-10,-87,-86,-95,-87,-87,-83,-138,-139,-139,-131,-135,-116,-158,-157,-153,-154,-164,-80,-91,-81,-91,-89,-96,-83,-106,-37,-39,-44,-54,-33,-30,-43,-43,-24,-27,-1]} 1. d4 {[%emt 0:00:04]} Nf6 {[%emt 0:00:17]} 2. Nf3 {[%emt 0:00:08]} g6 {[%emt 0:00:05]} 3. g3 {[%emt 0:00:05]} Bg7 {[%emt 0:00:13]} 4. Bg2 {[%emt 0:00:07]} d5 {[%emt 0:00:14]} 5. O-O {[%emt 0:00:07]} O-O {[%emt 0:00:08]} 6. Nbd2 {[%emt 0:01:43]} c6 {[%emt 0:10:12]} 7. b3 {[%emt 0:00:14]} Bf5 {[%emt 0:04:39]} 8. Bb2 {[%emt 0:00:58]} Ne4 {[%emt 0:05:10] [#] D02: 1 d4 d5 2 Nf3 sidelines, including 2...Nf6 3 g3 and 2...Nf6 3 Bf4.} 9. a3 $146 {[%emt 0:12:42]} ({Predecessor:} 9. c4 Nxd2 10. Qxd2 Be4 11. Rfd1 Nd7 12. Rac1 a5 13. Bh3 Bxf3 14. exf3 e6 15. a4 Qb6 16. Qc2 Rfd8 17. c5 Qc7 18. f4 b6 19. cxb6 Qxb6 20. Qxc6 Qxb3 {0-1 (47) Li,C (2751)-Ponomariov,R (2712) Huaian 2016}) 9... Nd7 {[%emt 0:04:44]} 10. Nh4 {[%emt 0:14:59]} Nxd2 {[%emt 0:00:53] The position is equal.} 11. Qxd2 {[%emt 0:00:03]} Be6 {[%emt 0:00:38]} 12. f4 {[%emt 0:04:39]} Nf6 {[%emt 0:08:19]} 13. f5 {[%emt 0:01:57]} Bd7 {[%emt 0:01:02]} 14. Qf4 {[%emt 0:04:47]} Qb8 {[%emt 0:04:24]} 15. Qe3 {[%emt 0:06:14]} Qc7 {[%emt 0:05:57]} 16. Bc1 {[%emt 0:00:16]} ({Much weaker is} 16. Qxe7 Rfe8 17. Qc5 g5 $17) (16. a4 $11) 16... Ng4 $17 {[%emt 0:05:44]} 17. Qd3 {[%emt 0:10:11]} Qb6 {[%emt 0:06:23]} 18. c3 {[%emt 0:01:57]} e5 {[%emt 0:07:34][%cal Re5d4]} ({Don't play} 18... Qxb3 19. Rb1 Qa4 20. Rxb7 $16) 19. fxe6 {[%emt 0:02:17]} (19. Bh3 $142 Nf6 20. Be3 exd4 21. cxd4) 19... fxe6 {[%emt 0:03:15][%cal Bf7e6,Be6e5][%mdl 32]} 20. h3 {[%emt 0:08:26]} Rxf1+ {[%emt 0:01:26]} 21. Bxf1 {[%emt 0:00:40]} Nf6 {[%emt 0:00:50]} 22. b4 {[%emt 0:02:01]} Ne4 {[%emt 0:00:31]} 23. Kh2 {[%emt 0:01:44]} e5 {[%emt 0:02:48][%cal Re5d4]} 24. Nf3 {[%emt 0:05:29] [#]} Nxg3 $1 {[%emt 0:12:38][%mdl 512]} 25. Kxg3 {[%emt 0:00:09]} e4 {[%emt 0:00:04]} 26. Qe3 {[%emt 0:00:10] Threatens to win with Ne5.} exf3 {[%emt 0:00:11]} 27. exf3 {[%emt 0:03:42]} Re8 {[%emt 0:04:53] Against Qe7} (27... Rf8 {keeps more tension.} 28. Bd2 Bf6 29. Bd3 Qd8) 28. Qf2 {[%emt 0:01:27]} Bf5 {[%emt 0:01:36]} (28... Qd8 $17 {And now ...Bf6 would win.} 29. Kg2 Qf6) 29. Bf4 $15 {[%emt 0:00:54]} Qd8 {[%emt 0:01:06]} 30. Re1 {[%emt 0:01:17]} Rxe1 {[%emt 0:00:29]} 31. Qxe1 {[%emt 0:00:12]} Bf6 {[%emt 0:00:22] [#] Hoping for ...Bh4+.} 32. Kh2 {[%emt 0:01:23]} Kf7 {[%emt 0:05:46]} 33. a4 {[%emt 0:07:58]} b6 {[%emt 0:01:16] White happily takes the draw.  Weighted Error Value: White=0.15 (very precise) /Black=0.12 (very precise)} 1/2-1/2